fUSD/lending_fUSD_20260529
["ID","MTS","AMOUNT","RATE_DAILY","PERIOD"]
[423276733,1780013432000,-500.0,0.00013699,2]
[423276721,1780013432000,-500.0,0.00013689,2]
[423276701,1780013432000,-150.0,0.00013488,2]
[423276699,1780013432000,-150.0,0.00013488,2]
[423276706,1780013432000,-434.0,0.00013519,2]
[423276734,1780013432000,-500.0,0.00013699,2]
[423276682,1780013432000,-1136.829114,0.0001288,2]
[423276680,1780013432000,-124.15638005,0.00012574,2]
[423276683,1780013432000,-150.0,0.00012945,2]
[423276681,1780013432000,-806.19,0.00012707,2]
[423276687,1780013432000,-1200.0,0.00013073,2]
[423276686,1780013432000,-593.35497189,0.00013047,2]
[423276684,1780013432000,-1000.0,0.00012945,2]
[423276679,1780013432000,-125.84361995,0.00012574,2]
[423276685,1780013432000,-152.09,0.00012945,2]
[423276688,1780013432000,-160.0,0.00013159,2]
[423276689,1780013432000,-209.03147293,0.00013159,2]
[423276707,1780013432000,-254.0,0.00013546,2]
[423276691,1780013432000,-102.81910257,0.00013285,2]
[423276692,1780013432000,-489.77824317,0.00013355,2]
[423276694,1780013432000,-270.0,0.00013452,2]
[423276693,1780013432000,-300.0,0.00013452,2]
[423276696,1780013432000,-150.0,0.00013488,2]
[423276697,1780013432000,-150.0,0.00013488,2]
[423276695,1780013432000,-150.0,0.00013488,2]
[423276698,1780013432000,-150.0,0.00013488,2]
[423276700,1780013432000,-150.0,0.00013488,2]
[423276702,1780013432000,-150.0,0.00013488,2]
[423276703,1780013432000,-439.0,0.00013519,2]
[423276704,1780013432000,-5603.0302778,0.00013519,2]
[423276708,1780013432000,-1642.0,0.00013546,2]
[423276690,1780013432000,-62.79089743,0.00013285,2]
[423276735,1780013432000,-58680.6372,0.00013702,2]
[423276779,1780013432000,-2468.0583,0.00014799,2]
[423276740,1780013432000,-150.0,0.0001384,2]
[423276768,1780013432000,-500.0,0.00014451,2]
[423276736,1780013432000,-390.0,0.00013735,2]
[423276770,1780013432000,-150.0,0.00014487,2]
[423276771,1780013432000,-150.0,0.00014487,2]
[423276772,1780013432000,-152.0,0.00014497,7]
[423276773,1780013432000,-152.0,0.00014518,7]
[423276774,1780013432000,-150.0,0.00014546,2]
[423276781,1780013432000,-151.13047143,0.00014799,2]
[423276782,1780013432000,-2825.55990467,0.000148,2]
[423276776,1780013432000,-150.0,0.00014687,2]
[423276775,1780013432000,-150.0,0.00014634,2]
[423276777,1780013432000,-150.0,0.00014722,2]
[423276780,1780013432000,-5740.15262857,0.00014799,2]
[423276778,1780013432000,-500.0,0.00014725,2]
[423276784,1780013432000,-2825.55990467,0.00014811,2]
[423276783,1780013432000,-150.0,0.0001481,2]
[423276787,1780013432000,-2825.55990467,0.00014833,2]
[423276785,1780013432000,-255.0,0.00014812,2]
[423276786,1780013432000,-2825.55990467,0.00014822,2]
[423276788,1780013432000,-2825.55990467,0.00014844,2]
[423276789,1780013432000,-35000.79271777,0.00014845,2]
[423276791,1780013432000,-500.0,0.00013699,2]
[423276790,1780013432000,-500.0,0.00013699,2]
[423276792,1780013432000,-503.14592439,0.00014845,2]
[423276793,1780013432000,-2072.67693804,0.00014845,2]
[423276766,1780013432000,-1680.0,0.0001438,2]
[423276764,1780013432000,-806.19,0.00014295,2]
[423276767,1780013432000,-150.0,0.00014387,2]
[423276759,1780013432000,-150.0,0.00014105,2]
[423276739,1780013432000,-150.0,0.00013787,2]
[423276738,1780013432000,-1580.0,0.00013763,2]
[423276737,1780013432000,-150.0,0.00013752,2]
[423276742,1780013432000,-500.0,0.00013873,2]
[423276741,1780013432000,-500.0,0.00013873,2]
[423276743,1780013432000,-500.0,0.00013873,2]
[423276744,1780013432000,-528.79383837,0.000139,2]
[423276745,1780013432000,-1126.29596801,0.000139,2]
[423276747,1780013432000,-1292.99822151,0.000139,2]
[423276763,1780013432000,-150.0,0.00014281,2]
[423276749,1780013432000,-217.21414087,0.00013901,2]
[423276748,1780013432000,-500.0,0.00013901,2]
[423276751,1780013432000,-150.0,0.00013928,2]
[423276746,1780013432000,-1249.30584899,0.000139,2]
[423276769,1780013432000,-150.0,0.00014457,2]
[423276752,1780013432000,-150.0,0.00013987,2]
[423276755,1780013432000,-152.0,0.00014008,30]
[423276753,1780013432000,-150.0,0.00013987,2]
[423276754,1780013432000,-250.0,0.00014,2]
[423276757,1780013432000,-150.0,0.00014087,2]
[423276756,1780013432000,-150.0,0.00014017,2]
[423276758,1780013432000,-250.0,0.00014091,2]
[423276761,1780013432000,-150.0,0.00014193,2]
[423276760,1780013432000,-500.0,0.00014177,2]
[423276750,1780013432000,-500.0,0.00013903,2]
[423276765,1780013432000,-150.0,0.00014369,2]
[423276762,1780013432000,-150.0,0.00014237,2]
[423276801,1780013433000,-500.0,0.00013699,2]
[423276800,1780013433000,-284.60163902,0.00014878,2]
[423276799,1780013433000,-274.04368011,0.00014878,2]
[423276802,1780013433000,-500.0,0.00013699,2]
[423276796,1780013433000,-1083.85999186,0.00014867,2]
[423276794,1780013433000,-4868.8882198,0.00014845,2]
[423276795,1780013433000,-2825.55990467,0.00014856,2]
[423276798,1780013433000,-1343.46676648,0.00014867,2]
[423276803,1780013433000,-2266.91458554,0.00014878,2]
[423276797,1780013433000,-398.23314633,0.00014867,2]
[423276804,1780013433000,-2825.55990467,0.00014889,2]
[423276814,1780013433000,-488.39471186,0.00013699,2]
[423276810,1780013433000,-1471.73737794,0.00014899,2]
[423276808,1780013433000,-703.96337451,0.00014899,2]
[423276812,1780013433000,-687.71577926,0.000149,2]
[423276807,1780013433000,-7331.48039216,0.00014899,2]
[423276805,1780013433000,-150.0,0.00014898,2]
[423276813,1780013433000,-625.05307491,0.000149,2]
[423276811,1780013433000,-251.45343174,0.00014899,2]
[423276809,1780013433000,-5608.2895824,0.00014899,2]
[423276806,1780013433000,-2500.0,0.00014899,2]
[423276948,1780013441000,-11.60528814,0.00013699,2]
[423276952,1780013441000,-500.0,0.00013699,2]
[423276950,1780013441000,-401.13832053,0.00013699,2]
[423276953,1780013441000,-195.94388815,0.00013699,2]
[423276954,1780013441000,-307.63587305,0.00013699,2]
[423276956,1780013441000,-500.0,0.00013699,2]
[423276959,1780013441000,-500.0,0.00013699,2]
[423276955,1780013441000,-192.36412695,0.00013699,2]
[423276960,1780013441000,-500.0,0.00013699,2]
[423276957,1780013441000,-500.0,0.00013699,2]
[423276958,1780013441000,-500.0,0.00013699,2]
[423276949,1780013441000,-500.0,0.00013699,2]
[423276962,1780013441000,-356.10023156,0.000149,2]
[423276961,1780013441000,-500.0,0.00013699,2]
[423276972,1780013441000,-397.55855933,0.000149,2]
[423276971,1780013441000,-900.39880848,0.000149,2]
[423276969,1780013441000,-230.74923131,0.000149,2]
[423276970,1780013441000,-1924.79558516,0.000149,2]
[423276951,1780013441000,-98.86167947,0.00013699,2]
[423276965,1780013441000,-160.0,0.000149,2]
[423276964,1780013441000,-160.0,0.000149,2]
[423276967,1780013441000,-230.74923131,0.000149,2]
[423276968,1780013441000,-178.75644311,0.000149,2]
[423276963,1780013441000,-5662.61130635,0.000149,2]
[423276966,1780013441000,-230.74923131,0.000149,2]
[423276983,1780013443000,-1777.24704703,0.000149,2]
[423276984,1780013443000,-2505.7006436,0.000149,2]
[423276988,1780013446000,-2825.55990467,0.000149,2]
[423276989,1780013446000,-1781.95260692,0.000149,2]
[423276990,1780013446000,-203.33101852,0.000149,2]
[423276987,1780013446000,-4825.77974848,0.000149,2]
[423276995,1780013446000,-7331.48039208,0.00014901,2]
[423276994,1780013446000,-7331.48039208,0.00014901,2]
[423276992,1780013446000,-7331.48039208,0.000149,2]
[423276993,1780013446000,-7331.48039208,0.00014901,2]
[423276997,1780013446000,-3108.26998069,0.00014902,2]
[423276996,1780013446000,-1209.73675105,0.00014902,2]
[423276991,1780013446000,-229.1799453,0.000149,2]
[423277000,1780013457000,152.0,0.00027951,120]
[423277001,1780013583000,3000.0,0.00027397,120]
[423277002,1780013585000,3000.0,0.00027397,120]
[423277003,1780013586000,3000.0,0.00027397,120]
[423277004,1780013587000,3000.0,0.00027397,120]
[423277005,1780013588000,3000.0,0.00027397,120]
[423277006,1780013589000,3000.0,0.00027397,120]
[423277007,1780013590000,3000.0,0.00027397,120]
[423277008,1780013591000,3000.0,0.00027397,120]
[423277009,1780013595000,3000.0,0.00027397,120]
[423277010,1780013660000,3000.0,0.00027397,120]
[423277011,1780013662000,3000.0,0.00027397,120]
[423277012,1780013663000,3000.0,0.00027397,120]
[423277013,1780013666000,3000.0,0.00027397,120]
[423277014,1780013678000,3206.391,0.00027397,120]
[423277015,1780013709000,176.0,0.0002781,120]
[423277016,1780013738000,150.0,0.00012793,120]
[423277017,1780013856000,290.05215878,0.0002781,120]
[423277018,1780013881000,152.0,0.00027801,120]
[423277019,1780013929000,3018.64085487,0.0002,120]
[423277020,1780013931000,3104.01827609,0.0002808,120]
[423277021,1780013940000,157.86,6.41e-05,2]
[423277022,1780013942000,157.86,6.903e-05,2]
[423277025,1780013943000,157.86,8.382e-05,2]
[423277023,1780013943000,157.86,7.396e-05,2]
[423277027,1780013943000,157.86,9.368e-05,2]
[423277026,1780013943000,157.86,8.875e-05,2]
[423277024,1780013943000,157.86,7.889e-05,2]
[423277030,1780013944000,157.86,0.00010847,2]
[423277029,1780013944000,157.86,0.00010354,2]
[423277028,1780013944000,157.86,9.861e-05,2]
[423277031,1780013953000,49311.1871647,0.000103,2]
[423277033,1780014014000,176.0,0.00027397,120]
[423277035,1780014033000,800.2285938,0.00025,120]
[423277034,1780014033000,1017.63759265,0.000226,120]
[423277036,1780014045000,262.83671332,0.000101,2]
[423277037,1780014086000,163.23613086,0.00028,120]
[423277038,1780014103000,2000.0,0.0002739,120]
[423277039,1780014117000,10000.0,0.00028082,120]
[423277040,1780014127000,2057.47047438,0.000274,120]
[423277041,1780014128000,7994.86,0.00028082,120]
[423277042,1780014138000,15040.76883106,0.000107,2]
[423277043,1780014139000,224.94877293,0.00025,120]
[423277044,1780014143000,3778.85698858,0.0002,120]
[423277046,1780014144000,779.457553,0.0002,120]
[423277045,1780014144000,1058.32933457,0.0002,120]
[423277048,1780014145000,2470.57373702,9.04e-05,2]
[423277047,1780014145000,369.38711766,0.000226,120]
[423277049,1780014150000,315.93978597,0.00027,120]
[423277050,1780014151000,758.4996938,0.000271,120]
[423277051,1780014234000,-157.86,0.0001134,2]
[423277052,1780014285000,-850.42888477,0.00011733,2]
[423277053,1780014309000,168.0,0.00027072,120]
[423277056,1780014364000,-150.0,0.0001121,2]
[423277057,1780014396000,500.0,0.00028082,120]
[423277058,1780014421000,152.0,0.00011767,30]
[423277059,1780014423000,152.0,0.00027703,120]
[423277063,1780014436000,-847.785472,0.00012165,2]
[423277064,1780014436000,-656.06601655,0.00012201,2]
[423277062,1780014436000,-157.86,0.00011833,2]
[423277061,1780014436000,-72.71804177,0.00011733,2]
[423277068,1780014487000,250.0,0.00011265,2]
[423277069,1780014505000,158.06770623,0.00010985,2]
[423277071,1780014506000,152.0,0.00027703,120]
[423277070,1780014506000,152.0,0.00011767,30]
[423277072,1780014541000,1000.0,0.00028081,120]
[423277073,1780014553000,-184.14762126,0.00011265,2]
[423277074,1780014602000,1000.0,0.00028081,120]
[423277075,1780014621000,168.0,0.00027119,120]
[423277082,1780014632000,-186.67289015,0.00011736,2]
[423277083,1780014632000,-438.59102985,0.00011736,2]
[423277080,1780014632000,-315.85237874,0.00011265,2]
[423277081,1780014632000,-63.32710985,0.00011736,2]
[423277084,1780014633000,-61.40897015,0.00011736,2]
[423277085,1780014633000,-402.19811419,0.00011736,2]
[423277106,1780014638000,-212.83775333,0.00012478,2]
[423277105,1780014638000,-500.0,0.00012478,2]
[423277108,1780014638000,-245.4266011,0.00012478,2]
[423277107,1780014638000,-28.57690719,0.00012478,2]
[423277109,1780014638000,-224.30918821,0.00012478,2]
[423277110,1780014638000,-275.69081179,0.00012478,2]
[423277111,1780014638000,-500.0,0.00012478,2]
[423277103,1780014638000,-2000.0,0.00012464,2]
[423277114,1780014638000,-260.67889609,0.00012478,2]
[423277115,1780014638000,-239.32110391,0.00012478,2]
[423277113,1780014638000,-301.35405096,0.00012478,2]
[423277112,1780014638000,-198.64594904,0.00012478,2]
[423277104,1780014638000,-1852.42,0.00012464,2]
[423277098,1780014638000,-209.03147293,0.00012346,2]
[423277100,1780014638000,-185.9086753,0.00012404,2]
[423277101,1780014638000,-305.52105657,0.00012411,2]
[423277116,1780014638000,-500.0,0.00012478,2]
[423277099,1780014638000,-11.05218296,0.00012404,2]
[423277097,1780014638000,-160.0,0.00012346,2]
[423277096,1780014638000,-157.86,0.00012327,2]
[423277092,1780014638000,-250.0,0.00012201,2]
[423277093,1780014638000,-500.0,0.00012201,2]
[423277094,1780014638000,-21.74111024,0.00012201,2]
[423277090,1780014638000,-215.50460005,0.00011808,2]
[423277089,1780014638000,-500.0,0.00011736,2]
[423277088,1780014638000,-97.80188581,0.00011736,2]
[423277091,1780014638000,-305.52105659,0.00012101,2]
[423277102,1780014638000,-212.11,0.00012431,2]
[423277118,1780014638000,-379.73199991,0.00012478,2]
[423277095,1780014638000,-238.65970599,0.00012201,2]
[423277119,1780014638000,-120.26800009,0.00012478,2]
[423277117,1780014638000,-500.0,0.00012478,2]
[423277156,1780014638000,-500.0,0.00012478,2]
[423277154,1780014638000,-500.0,0.00012478,2]
[423277150,1780014638000,-500.0,0.00012478,2]
[423277148,1780014638000,-500.0,0.00012478,2]
[423277140,1780014638000,-500.0,0.00012478,2]
[423277142,1780014638000,-500.0,0.00012478,2]
[423277141,1780014638000,-500.0,0.00012478,2]
[423277139,1780014638000,-500.0,0.00012478,2]
[423277138,1780014638000,-500.0,0.00012478,2]
[423277146,1780014638000,-500.0,0.00012478,2]
[423277134,1780014638000,-500.0,0.00012478,2]
[423277144,1780014638000,-500.0,0.00012478,2]
[423277133,1780014638000,-500.0,0.00012478,2]
[423277152,1780014638000,-500.0,0.00012478,2]
[423277132,1780014638000,-500.0,0.00012478,2]
[423277136,1780014638000,-500.0,0.00012478,2]
[423277122,1780014638000,-500.0,0.00012478,2]
[423277120,1780014638000,-500.0,0.00012478,2]
[423277127,1780014638000,-500.0,0.00012478,2]
[423277121,1780014638000,-500.0,0.00012478,2]
[423277124,1780014638000,-220.26800009,0.00012478,2]
[423277123,1780014638000,-279.73199991,0.00012478,2]
[423277128,1780014638000,-500.0,0.00012478,2]
[423277130,1780014638000,-500.0,0.00012478,2]
[423277126,1780014638000,-500.0,0.00012478,2]
[423277131,1780014638000,-500.0,0.00012478,2]
[423277125,1780014638000,-500.0,0.00012478,2]
[423277129,1780014638000,-500.0,0.00012478,2]
[423277196,1780014639000,-948.0,0.00012741,2]
[423277198,1780014639000,-500.0,0.00012752,2]
[423277199,1780014639000,-150.0,0.00012793,2]
[423277197,1780014639000,-2537.0,0.00012741,2]
[423277200,1780014639000,-10891.55620157,0.00012806,2]
[423277201,1780014639000,-1014.52433529,0.00012806,2]
[423277203,1780014639000,-2156.72,0.00012819,2]
[423277204,1780014639000,-157.86,0.0001282,2]
[423277202,1780014639000,-34374.08,0.00012819,2]
[423277206,1780014639000,-864.0,0.00012879,2]
[423277208,1780014639000,-1008.0,0.00012904,2]
[423277211,1780014639000,-300.0,0.00013084,2]
[423277209,1780014639000,-1229.97,0.00012945,2]
[423277207,1780014639000,-308.20548047,0.00012898,2]
[423277210,1780014639000,-633.2932545,0.00013077,2]
[423277212,1780014639000,-300.0,0.00013084,2]
[423277213,1780014639000,-335.05981866,0.00013203,2]
[423277216,1780014639000,-200.84715824,0.00013203,2]
[423277215,1780014639000,-500.0,0.00013203,2]
[423277218,1780014639000,-430.22322328,0.00013203,2]
[423277195,1780014639000,-204.57726168,0.00012741,2]
[423277205,1780014639000,-150.0,0.00012825,7]
[423277194,1780014639000,-546.0,0.00012741,2]
[423277188,1780014639000,-500.0,0.00012478,2]
[423277193,1780014639000,-200.0,0.0001273,2]
[423277161,1780014639000,-500.0,0.00012478,2]
[423277163,1780014639000,-500.0,0.00012478,2]
[423277165,1780014639000,-500.0,0.00012478,2]
[423277168,1780014639000,-500.0,0.00012478,2]
[423277167,1780014639000,-180.04071046,0.00012478,2]
[423277158,1780014639000,-500.0,0.00012478,2]
[423277171,1780014639000,-500.0,0.00012478,2]
[423277173,1780014639000,-500.0,0.00012478,2]
[423277186,1780014639000,-500.0,0.00012478,2]
[423277187,1780014639000,-500.0,0.00012478,2]
[423277175,1780014639000,-500.0,0.00012478,2]
[423277177,1780014639000,-168.00407104,0.00012478,2]
[423277182,1780014639000,-500.0,0.00012478,2]
[423277179,1780014639000,-500.0,0.00012478,2]
[423277185,1780014639000,-500.0,0.00012478,2]
[423277214,1780014639000,-500.0,0.00013203,2]
[423277184,1780014639000,-500.0,0.00012478,2]
[423277181,1780014639000,-500.0,0.00012478,2]
[423277189,1780014639000,-305.52105657,0.0001272,2]
[423277191,1780014639000,-2000.0,0.0001273,2]
[423277190,1780014639000,-2199.89,0.0001273,2]
[423277192,1780014639000,-1000.0,0.0001273,2]
[423277220,1780014639000,-389.60595848,0.00013203,2]
[423277183,1780014639000,-500.0,0.00012478,2]
[423277217,1780014639000,-500.0,0.00013203,2]
[423277246,1780014639000,-192.6,0.00013714,2]
[423277248,1780014639000,-150.0,0.00013821,2]
[423277249,1780014639000,-166.66,0.00013836,2]
[423277254,1780014639000,-2000.0,0.00014022,2]
[423277255,1780014639000,-166.66,0.0001411,2]
[423277251,1780014639000,-150.0,0.00013987,2]
[423277250,1780014639000,-166.66,0.00013973,2]
[423277253,1780014639000,-250.0,0.00014,2]
[423277252,1780014639000,-150.0,0.00013987,2]
[423277256,1780014639000,-150.0,0.00014154,2]
[423277258,1780014639000,-25000.0,0.00014191,3]
[423277257,1780014639000,-25000.0,0.00014182,3]
[423277259,1780014639000,-376.69558724,0.000142,2]
[423277260,1780014639000,-25000.0,0.000142,3]
[423277261,1780014639000,-150.0,0.00014237,2]
[423277264,1780014639000,-166.66,0.00014247,2]
[423277263,1780014639000,-150.0,0.00014237,2]
[423277265,1780014639000,-166.2,0.00014315,2]
[423277262,1780014639000,-150.0,0.00014237,2]
[423277266,1780014639000,-150.0,0.0001432,2]
[423277267,1780014639000,-34.8338129,0.00014348,2]
[423277240,1780014639000,-166.66,0.00013699,2]
[423277245,1780014639000,-299.54932091,0.00013699,2]
[423277219,1780014639000,-500.0,0.00013203,2]
[423277239,1780014639000,-150.0,0.00013654,2]
[423277222,1780014639000,-152.0,0.00013253,2]
[423277223,1780014639000,-500.0,0.00013288,2]
[423277221,1780014639000,-777.43440152,0.00013253,2]
[423277224,1780014639000,-151.0,0.000134,2]
[423277226,1780014639000,-150.0,0.00013488,2]
[423277225,1780014639000,-150.0,0.00013488,2]
[423277227,1780014639000,-150.0,0.00013488,2]
[423277228,1780014639000,-150.0,0.00013488,2]
[423277230,1780014639000,-150.0,0.00013488,2]
[423277232,1780014639000,-150.0,0.00013488,2]
[423277235,1780014639000,-150.0,0.00013488,2]
[423277247,1780014639000,-2437.33,0.00013789,2]
[423277229,1780014639000,-150.0,0.00013488,2]
[423277234,1780014639000,-150.0,0.00013488,2]
[423277233,1780014639000,-150.0,0.00013488,2]
[423277236,1780014639000,-150.0,0.00013488,2]
[423277238,1780014639000,-1475.6433,0.000135,2]
[423277237,1780014639000,-150.0,0.00013488,2]
[423277241,1780014639000,-2500.0,0.00013699,2]
[423277242,1780014639000,-200.0,0.00013699,2]
[423277243,1780014639000,-500.0,0.00013699,2]
[423277244,1780014639000,-500.0,0.00013699,2]
[423277231,1780014639000,-150.0,0.00013488,2]
[423277282,1780014640000,-287.52,0.00014616,46]
[423277284,1780014640000,-287.51,0.00014616,56]
[423277291,1780014640000,-1034.49540526,0.00014657,2]
[423277289,1780014640000,-150.0,0.00014653,2]
[423277290,1780014640000,-350.0,0.00014653,2]
[423277292,1780014640000,-1034.49540524,0.00014684,2]
[423277285,1780014640000,-287.51,0.00014616,60]
[423277286,1780014640000,-287.51,0.00014616,40]
[423277283,1780014640000,-287.51,0.00014616,54]
[423277288,1780014640000,-152.09,0.00014635,2]
[423277278,1780014640000,-150.0,0.00014487,2]
[423277276,1780014640000,-796.0,0.00014452,2]
[423277275,1780014640000,-500.0,0.00014452,2]
[423277277,1780014640000,-150.0,0.00014487,2]
[423277274,1780014640000,-500.0,0.00014452,2]
[423277280,1780014640000,-287.52,0.00014616,54]
[423277271,1780014640000,-485.24310175,0.00012719,2]
[423277279,1780014640000,-287.52,0.00014616,53]
[423277273,1780014640000,-166.66,0.00014384,2]
[423277272,1780014640000,-385.1661871,0.00014348,2]
[423277270,1780014640000,-365.18579825,0.00012719,2]
[423277287,1780014640000,-500.0,0.0001463,2]
[423277281,1780014640000,-287.52,0.00014616,73]
[423277293,1780014640000,-4410.589,0.000147,2]
[423277296,1780014640000,-1034.49540524,0.00014711,2]
[423277295,1780014640000,-350.0,0.00014704,2]
[423277324,1780014640000,-150.0,0.00014986,2]
[423277322,1780014640000,-152.0,0.00014923,7]
[423277320,1780014640000,-1034.49540524,0.000149,2]
[423277309,1780014640000,-1034.49540524,0.00014819,2]
[423277294,1780014640000,-253.532,0.000147,2]
[423277310,1780014640000,-150.0,0.0001482,2]
[423277306,1780014640000,-265.8471,0.000148,2]
[423277316,1780014640000,-5000.0,0.000149,2]
[423277308,1780014640000,-5601.2549369,0.00014809,2]
[423277312,1780014640000,-1034.49540524,0.00014873,2]
[423277307,1780014640000,-18145.1664611,0.00014809,2]
[423277314,1780014640000,-178.75644311,0.000149,2]
[423277313,1780014640000,-152.0,0.00014889,7]
[423277311,1780014640000,-1034.49540524,0.00014846,2]
[423277318,1780014640000,-231.40422016,0.000149,2]
[423277298,1780014640000,-500.0,0.00014726,2]
[423277301,1780014640000,-429851.4560558,0.00014757,2]
[423277299,1780014640000,-572.0,0.00014726,2]
[423277297,1780014640000,-500.0,0.00014726,2]
[423277300,1780014640000,-1034.49540524,0.00014738,2]
[423277302,1780014640000,-16179.866631,0.00014757,2]
[423277304,1780014640000,-1034.49540524,0.00014792,2]
[423277305,1780014640000,-500.0,0.000148,2]
[423277303,1780014640000,-1034.49540524,0.00014765,2]
[423277345,1780014641000,-500.0,0.00014998,2]
[423277342,1780014641000,-500.0,0.00014998,2]
[423277340,1780014641000,-500.0,0.00014998,2]
[423277344,1780014641000,-500.0,0.00014998,2]
[423277341,1780014641000,-500.0,0.00014998,2]
[423277346,1780014641000,-500.0,0.00014998,2]
[423277339,1780014641000,-500.0,0.00014998,2]
[423277336,1780014641000,-317.6573769,0.00014989,2]
[423277327,1780014641000,-150.0,0.00014986,2]
[423277335,1780014641000,-150.0,0.00014986,2]
[423277330,1780014641000,-150.0,0.00014986,2]
[423277326,1780014641000,-150.0,0.00014986,2]
[423277338,1780014641000,-1087.67016759,0.00014998,5]
[423277331,1780014641000,-150.0,0.00014986,2]
[423277349,1780014641000,-500.0,0.00014998,2]
[423277337,1780014641000,-151.0,0.00014997,2]
[423277347,1780014641000,-500.0,0.00014998,2]
[423277333,1780014641000,-155.41130412,0.00014986,7]
[423277348,1780014641000,-500.0,0.00014998,2]
[423277366,1780014641000,-134.23033263,0.00014999,2]
[423277365,1780014641000,-565.11243597,0.00014999,2]
[423277364,1780014641000,-500.0,0.00014999,2]
[423277362,1780014641000,-500.0,0.00014999,2]
[423277358,1780014641000,-500.0,0.00014999,2]
[423277357,1780014641000,-500.0,0.00014999,2]
[423277354,1780014641000,-500.0,0.00014999,2]
[423277360,1780014641000,-400.12952932,0.00014999,2]
[423277343,1780014641000,-500.0,0.00014998,2]
[423277353,1780014641000,-500.0,0.00014999,2]
[423277363,1780014641000,-500.0,0.00014999,2]
[423277356,1780014641000,-500.0,0.00014999,2]
[423277359,1780014641000,-500.0,0.00014999,2]
[423277355,1780014641000,-500.0,0.00014999,2]
[423277361,1780014641000,-500.0,0.00014999,2]
[423277351,1780014641000,-500.0,0.00014999,2]
[423277350,1780014641000,-23146.351255,0.00014999,2]
[423277352,1780014641000,-500.0,0.00014999,2]
[423277375,1780014643000,-144.32417067,0.00014999,2]
[423277376,1780014643000,-666.0,0.00014999,2]
[423277377,1780014643000,-52.79347348,0.00014999,2]
[423277392,1780014646000,-300.0,0.00014999,2]
[423277386,1780014646000,-1187.96840462,0.000149,2]
[423277388,1780014646000,-300.0,0.00014999,2]
[423277390,1780014646000,-300.0,0.00014999,2]
[423277391,1780014646000,-300.0,0.00014999,2]
[423277394,1780014646000,-666.0,0.00014999,2]
[423277387,1780014646000,-247.20652652,0.00014999,2]
[423277399,1780014646000,-280.87,0.00015,2]
[423277398,1780014646000,-1180.95304529,0.00015,2]
[423277401,1780014646000,-546.006,0.00015,2]
[423277400,1780014646000,-2034.61950838,0.00015,2]
[423277397,1780014646000,-27680.09748404,0.00015,2]
[423277389,1780014646000,-300.0,0.00014999,2]
[423277396,1780014646000,-666.0,0.00014999,2]
[423277395,1780014646000,-300.0,0.00014999,2]
[423277393,1780014646000,-300.0,0.00014999,2]
[423277404,1780014667000,151.4766567,0.00011092,7]
[423277405,1780014668000,150.0,0.00012464,120]
[423277408,1780014697000,171.26,0.00010184,2]
[423277409,1780014788000,183.9406873,0.00011092,7]
[423277411,1780014790000,183.9406873,0.00011647,7]
[423277410,1780014790000,183.9406873,0.00011314,7]
[423277412,1780014791000,183.9406873,0.0001198,7]
[423277413,1780014817000,154.3,6.365e-05,2]
[423277414,1780014817000,154.3,7.072e-05,2]
[423277420,1780014818000,154.3,9.901e-05,2]
[423277415,1780014818000,154.3,7.78e-05,2]